bitfinex-derivatives/quotes_BTCF0:USTF0_20241008
["timestamp","ask_amount","ask_price","bid_price","bid_amount"]
[1728408932876,0.441064,62328.0,62327.0,0.0310936]
[1728408933086,0.441064,62328.0,62327.0,0.00240649]
[1728408934185,0.49863101,62328.0,62327.0,0.00240649]
[1728408934575,0.441064,62328.0,62327.0,0.00240649]
[1728408935472,0.080264,62328.0,62327.0,0.00240649]
[1728408935675,0.10682684,62328.0,62327.0,0.18240649]
[1728408935880,0.17474418,62328.0,62327.0,0.26267249]
[1728408936080,0.04926311,62328.0,62327.0,0.19240649]
[1728408936381,0.158985,62329.0,62328.0,0.561584]
[1728408936590,0.080252,62338.0,62329.0,0.080263]
[1728408936777,0.05755769,62337.0,62335.0,0.19]
[1728408936977,0.05755769,62337.0,62335.0,0.1995399]
[1728408937487,0.080254,62336.0,62335.0,0.1192849]
[1728408937782,0.17711127,62336.0,62335.0,0.1192849]
[1728408938278,0.17711131,62336.0,62335.0,0.1995399]
[1728408938679,0.17711131,62336.0,62335.0,0.1192849]
[1728408938890,0.09685731,62336.0,62335.0,0.1995399]
[1728408939079,0.09685731,62336.0,62335.0,0.260255]
[1728408939279,0.05755769,62336.0,62335.0,0.260255]
[1728408939491,0.080249,62340.0,62335.0,0.18]
[1728408939684,0.1066,62342.0,62337.0,0.080253]
[1728408939992,0.1066,62342.0,62340.0,0.18]
[1728408939993,0.080248,62341.0,62340.0,0.18]
[1728408940183,0.1066,62342.0,62337.0,0.270253]
[1728408940495,0.080251,62339.0,62338.0,0.18]
[1728408941182,0.080251,62339.0,62337.0,0.270253]
[1728408941389,0.080251,62339.0,62337.0,0.260253]
[1728408941780,0.080251,62339.0,62337.0,0.080253]
[1728408941986,0.080254,62336.0,62335.0,0.191]
[1728408942188,0.3608,62338.0,62335.0,0.191]
[1728408942486,0.3608,62338.0,62335.0,0.271255]
[1728408942688,0.3608,62338.0,62337.0,0.001]
[1728408943086,0.441052,62338.0,62337.0,0.001]
[1728408943290,0.441052,62338.0,62336.0,0.080254]
[1728408943891,0.080253,62337.0,62336.0,0.080254]
[1728408944386,0.080253,62337.0,62335.0,0.19]
[1728408944594,0.3608,62338.0,62336.0,0.080254]
[1728408944796,0.3608,62338.0,62335.0,0.19]
[1728408945093,0.080253,62337.0,62335.0,0.270255]
[1728408945884,0.3608,62338.0,62335.0,0.19]
[1728408946085,0.3608,62338.0,62337.0,0.260253]
[1728408946295,0.441052,62338.0,62337.0,0.260253]
[1728408948200,0.441052,62338.0,62337.0,0.080253]
[1728408950102,0.080251,62339.0,62337.0,0.260253]
[1728408950599,0.080251,62339.0,62338.0,0.080252]
[1728408950994,0.186847,62342.0,62338.0,0.080252]
[1728408951391,0.080252,62338.0,62337.0,0.001]
[1728408951599,0.441052,62338.0,62337.0,0.001]
[1728408951902,0.080251,62339.0,62337.0,0.081253]
[1728408952101,0.080251,62339.0,62338.0,0.001]
[1728408953707,0.1066,62342.0,62337.0,0.080253]
[1728408953999,0.080252,62338.0,62337.0,0.081253]
[1728408954403,0.441052,62338.0,62337.0,0.081253]
[1728408954605,0.441052,62338.0,62337.0,0.080253]
[1728408955497,0.441052,62338.0,62337.0,0.081253]
[1728408955997,0.441052,62338.0,62337.0,0.080253]
[1728408956309,0.441052,62338.0,62337.0,0.260253]
[1728408956803,0.080253,62337.0,62335.0,0.21854069]
[1728408957000,0.3608,62338.0,62334.0,0.080256]
[1728408957299,0.08026,62332.0,62329.0,0.441062]
[1728408957505,0.080262,62330.0,62329.0,0.0290681]
[1728408957704,0.080262,62330.0,62328.0,0.080264]
[1728408958107,0.3608,62331.0,62327.0,0.19240649]
[1728408958307,0.080264,62328.0,62327.0,0.19240649]
[1728408958506,0.080264,62328.0,62327.0,0.27267249]
[1728408958702,0.1053,62330.0,62328.0,0.080264]
[1728408958703,0.185563,62330.0,62328.0,0.080264]
[1728408959298,0.080264,62328.0,62327.0,0.22141966]
[1728408959703,0.080264,62328.0,62327.0,0.30168566]
[1728408960193,0.080264,62328.0,62327.0,0.22141966]
[1728408960400,0.080264,62328.0,62327.0,0.00240649]
[1728408961309,0.1077,62329.0,62327.0,0.08267149]
[1728408961510,0.187964,62329.0,62327.0,0.08267149]
[1728408961806,0.080264,62328.0,62327.0,0.00240649]
[1728408962815,0.080264,62328.0,62327.0,0.00340649]
[1728408962996,0.1077,62329.0,62327.0,0.00340649]
[1728408963305,0.00104001,62330.0,62329.0,0.080263]
[1728408963509,0.0112,62341.0,62333.0,0.080258]
[1728408963704,0.3608,62338.0,62337.0,0.19]
[1728408963905,0.441052,62338.0,62337.0,0.19]
[1728408968913,0.751052,62338.0,62327.0,0.00240649]
[1728408969215,0.080264,62329.0,62327.0,0.08267149]
[1728408969509,0.441064,62328.0,62327.0,0.00240649]
[1728408969710,0.661864,62328.0,62327.0,0.00240649]
[1728408970108,0.5816,62328.0,62313.0,0.19]
[1728408970307,0.5816,62328.0,62304.0,0.3651]
[1728408970308,0.3608,62321.0,62316.0,0.0037]
[1728408970503,0.3608,62321.0,62309.0,0.1937]
[1728408970504,0.080279,62317.0,62309.0,0.1937]
[1728408970710,0.3608,62321.0,62314.0,0.080282]
[1728408970906,0.080281,62316.0,62314.0,0.080282]
[1728408971307,0.3608,62316.0,62312.0,0.080285]
[1728408971511,0.3608,62316.0,62313.0,0.19]
[1728408971813,0.3608,62316.0,62315.0,0.080281]
[1728408974108,0.3608,62316.0,62315.0,0.089281]
[1728408974816,0.44108,62316.0,62315.0,0.009]
[1728408976026,0.3608,62316.0,62315.0,0.03799918]
[1728408976208,0.3608,62316.0,62315.0,0.089281]
[1728408977816,0.3608,62316.0,62315.0,0.009]
[1728408978016,0.44108,62316.0,62315.0,0.009]
[1728408978714,0.3608,62316.0,62315.0,0.21161566]
[1728408978914,0.04011731,62316.0,62315.0,0.27862318]
[1728408979114,0.080275,62320.0,62315.0,0.27862318]
[1728408979316,0.080275,62320.0,62319.0,0.09601285]
[1728408979517,0.080275,62320.0,62319.0,0.12233466]
[1728408981017,0.080275,62320.0,62319.0,0.20234383]
[1728408981322,0.080275,62320.0,62319.0,0.20233799]
[1728408981518,0.080275,62320.0,62319.0,0.12333466]
[1728408984711,0.25744833,62320.0,62309.0,0.24439772]
[1728408984913,0.25744833,62320.0,62305.0,0.00240734]
[1728408984914,0.3608,62314.0,62308.0,0.0282163]
[1728408985114,0.080293,62307.0,62306.0,0.080292]
[1728408985314,0.07032136,62307.0,62305.0,0.00240734]
[1728408985525,0.19988914,62306.0,62305.0,0.03160104]
[1728408985716,0.19988914,62306.0,62305.0,0.00240734]
[1728408986122,0.2574839,62306.0,62305.0,0.00240734]
[1728408986517,0.61829237,62306.0,62305.0,0.00240734]
[1728408986913,0.53799937,62306.0,62305.0,0.27270134]
[1728408987219,0.17719937,62306.0,62305.0,0.28570134]
[1728408987631,0.11961371,62306.0,62305.0,0.28570134]
[1728408987824,0.2062685,62306.0,62305.0,0.29970134]
[1728408989030,0.24558616,62306.0,62305.0,0.29970134]
[1728408989217,0.2062685,62306.0,62305.0,0.29970134]
[1728408989414,0.17719937,62306.0,62305.0,0.29970134]
[1728408989829,0.11961371,62306.0,62305.0,0.29970134]
[1728408990428,0.17719937,62306.0,62305.0,0.29970134]
[1728408991044,0.11961371,62306.0,62305.0,0.29970134]
[1728408992623,0.48041371,62306.0,62305.0,0.29970134]
[1728408992818,0.080291,62308.0,62307.0,0.080291]
[1728408993018,0.080291,62308.0,62307.0,0.16029109]
[1728408993219,0.080291,62308.0,62307.0,0.28264539]
[1728408993522,0.080291,62308.0,62307.0,0.080291]
[1728408993823,0.080291,62308.0,62307.0,0.16029109]
[1728408994217,0.080291,62308.0,62307.0,0.2826458]
[1728408994423,0.080291,62308.0,62307.0,0.2956458]
[1728408994731,0.080291,62308.0,62307.0,0.18529109]
[1728408995027,0.080291,62308.0,62307.0,0.30764699]
[1728408995229,0.3608,62309.0,62307.0,0.2276469]
[1728408995433,0.3608,62309.0,62308.0,0.20239331]
[1728408995829,0.3608,62309.0,62308.0,0.20239332]
[1728408996337,0.3608,62309.0,62308.0,0.12235469]
[1728408996837,0.3608,62309.0,62308.0,0.20264469]
[1728408997036,0.3608,62309.0,62308.0,0.39264469]
[1728408997328,0.3608,62309.0,62308.0,0.48865754]
[1728408997736,0.3608,62309.0,62308.0,0.51165754]
[1728408998233,0.3608,62309.0,62308.0,0.41564469]
[1728408999236,0.3608,62309.0,62308.0,0.56282141]
[1728408999743,0.441089,62309.0,62308.0,0.29253141]
[1728408999936,0.441089,62309.0,62308.0,0.023]
[1728408999937,0.56070045,62309.0,62308.0,0.023]
[1728409000342,0.71999955,62309.0,62308.0,0.023]
[1728409000840,0.72000332,62309.0,62308.0,0.023]
[1728409001041,0.56070422,62309.0,62308.0,0.023]
[1728409002744,0.59018727,62309.0,62308.0,0.023]
[1728409005731,0.80142158,62309.0,62308.0,0.023]
[1728409005937,0.80142158,62309.0,62298.0,0.0037]
[1728409005938,0.080301,62300.0,62298.0,0.0037]
[1728409006140,0.07033258,62299.0,62297.0,0.080304]
[1728409006340,0.11961968,62299.0,62297.0,0.080304]
[1728409006648,0.11961968,62299.0,62297.0,0.10908232]
[1728409006852,0.080301,62300.0,62298.0,0.31829973]
[1728409007145,0.2326,62303.0,62299.0,0.55292798]
[1728409007346,0.080299,62301.0,62300.0,0.26965622]
[1728409007740,0.080299,62301.0,62300.0,0.44086349]
[1728409007947,0.080299,62301.0,62300.0,0.26965622]
[1728409010043,0.081299,62301.0,62300.0,0.27365622]
[1728409010233,0.082299,62301.0,62300.0,0.27965622]
[1728409011048,0.002,62301.0,62300.0,0.27965622]
[1728409011352,0.002,62301.0,62300.0,0.35995622]
[1728409012149,0.082299,62301.0,62300.0,0.27965622]
[1728409013346,0.443099,62301.0,62300.0,0.27965622]
[1728409014851,0.56272895,62301.0,62300.0,0.01]
[1728409015846,0.56272895,62301.0,62300.0,0.2]
[1728409016053,0.56272895,62301.0,62300.0,0.2803]
[1728409016244,0.51344024,62301.0,62300.0,0.2803]
[1728409016454,0.51344024,62301.0,62300.0,0.2103]
[1728409017859,0.43314124,62301.0,62300.0,0.2103]
[1728409018056,0.12162889,62301.0,62300.0,0.2103]
[1728409018256,0.12162889,62301.0,62300.0,0.5711]
[1728409018452,0.07234124,62301.0,62300.0,0.5711]
[1728409020370,0.07234124,62301.0,62300.0,0.01]
[1728409020569,0.443099,62301.0,62300.0,0.01]
[1728409020862,0.56272486,62301.0,62300.0,0.01]
[1728409022075,0.60270826,62301.0,62300.0,0.27966374]
[1728409023249,0.60270826,62301.0,62300.0,0.13237414]
[1728409023864,0.56253192,62301.0,62300.0,0.2285976]
[1728409025158,0.56253192,62301.0,62300.0,0.13237414]
[1728409027265,0.67253192,62301.0,62300.0,0.13237414]
[1728409027966,0.51292266,62301.0,62300.0,0.13237414]
[1728409028471,0.51292266,62301.0,62300.0,0.13238635]
[1728409030267,0.51292266,62301.0,62300.0,0.01]
[1728409031054,0.40292266,62301.0,62300.0,0.01]
[1728409031265,0.080299,62301.0,62300.0,0.40267654]
[1728409031468,0.441099,62301.0,62300.0,0.29285636]
[1728409031670,0.441099,62301.0,62300.0,0.21255636]
[1728409031965,0.561099,62301.0,62300.0,0.01]
[1728409032168,0.561099,62301.0,62300.0,0.07415072]
[1728409033161,0.561099,62301.0,62300.0,0.01]
[1728409033565,0.561099,62301.0,62300.0,0.07415826]
[1728409034475,0.3608,62301.0,62300.0,0.2803]
[1728409034666,0.3608,62301.0,62300.0,0.36047982]
[1728409034864,0.3608,62301.0,62300.0,0.40268101]
[1728409035972,0.3608,62301.0,62300.0,0.54869617]
[1728409036566,0.3608,62301.0,62300.0,0.57749772]
[1728409037161,0.43113808,62301.0,62300.0,0.30910155]
[1728409038074,0.43113822,62301.0,62300.0,0.30910155]
[1728409041276,0.11962491,62301.0,62300.0,0.30910155]
[1728409041472,0.15960164,62308.0,62307.0,0.080291]
[1728409041674,0.0492799,62308.0,62307.0,0.080291]
[1728409041875,0.16200944,62313.0,62312.0,0.080285]
[1728409042074,0.16200944,62313.0,62312.0,0.270285]
[1728409042372,0.0516851,62313.0,62312.0,0.270285]
[1728409042976,0.21128674,62313.0,62312.0,0.270285]
[1728409043477,0.0516851,62313.0,62312.0,0.270285]
[1728409043778,0.0492773,62313.0,62312.0,0.29968752]
[1728409044671,0.0512773,62313.0,62312.0,0.31268752]
[1728409045174,0.002,62313.0,62312.0,1.75492752]
[1728409045375,0.15960164,62316.0,62315.0,0.080281]
[1728409045879,0.15960164,62316.0,62315.0,0.28242546]
[1728409046273,0.15960164,62316.0,62315.0,0.080281]
[1728409046675,0.15960164,62316.0,62315.0,0.27613851]
[1728409046871,0.15960164,62316.0,62315.0,0.39808773]
[1728409047076,0.15960164,62316.0,62315.0,0.31803022]
[1728409047271,0.15960164,62316.0,62315.0,0.199081]
[1728409047676,0.15960164,62316.0,62315.0,0.203081]
[1728409047882,0.15960164,62316.0,62315.0,0.2670603]
[1728409048272,0.441068,62325.0,62316.0,0.08028]
[1728409048483,0.441068,62325.0,62323.0,0.19]
[1728409049172,0.08027,62324.0,62323.0,0.19]
[1728409049376,0.08027,62324.0,62322.0,0.080272]
[1728409049377,0.080273,62321.0,62320.0,0.19]
[1728409050083,0.080273,62321.0,62320.0,0.270275]
[1728409051279,0.083273,62321.0,62320.0,0.270275]
[1728409051986,0.083273,62321.0,62320.0,0.2987309]
[1728409052679,0.32819697,62325.0,62320.0,0.2987309]
[1728409052885,0.080272,62323.0,62321.0,0.080273]
[1728409054081,0.080272,62322.0,62321.0,0.080273]
[1728409054277,0.080273,62321.0,62320.0,0.0304559]
[1728409054479,0.08027,62324.0,62320.0,0.2234559]
[1728409054686,0.08027,62324.0,62323.0,0.19]
[1728409055183,0.080272,62322.0,62321.0,0.080273]
[1728409056391,0.08627,62324.0,62320.0,0.2184559]
[1728409056586,0.08627,62324.0,62315.0,0.0037]
[1728409056782,0.08627,62324.0,62312.0,0.080285]
[1728409056783,0.080284,62313.0,62312.0,0.080285]
[1728409057884,0.080284,62313.0,62309.0,0.080288]
[1728409058082,0.080285,62312.0,62309.0,0.080288]
[1728409058284,0.002,62313.0,62312.0,0.013]
[1728409058481,0.002,62313.0,62312.0,0.283285]
[1728409058991,0.002,62313.0,62312.0,0.276285]
[1728409059190,0.001,62313.0,62312.0,0.270285]
[1728409060191,0.001,62313.0,62312.0,0.29963451]
[1728409060490,0.03200891,62313.0,62312.0,0.29963451]
[1728409060679,0.03200891,62313.0,62312.0,0.30563451]
[1728409060878,0.03300891,62313.0,62312.0,0.31263451]
[1728409061388,0.12159397,62313.0,62312.0,0.31263451]
[1728409067389,0.002,62313.0,62312.0,0.51495174]
[1728409067886,0.002,62313.0,62312.0,0.39261397]
[1728409068088,0.002,62313.0,62312.0,0.51495269]
[1728409068289,0.002,62313.0,62312.0,0.31232897]
[1728409068500,0.082284,62313.0,62312.0,0.013]
[1728409068902,0.082284,62313.0,62312.0,0.06108099]
[1728409069199,0.082284,62313.0,62312.0,0.013]
[1728409070796,0.082284,62313.0,62312.0,0.06110449]
[1728409071296,0.082284,62313.0,62312.0,0.013]
[1728409071500,0.082284,62313.0,62312.0,0.06111572]
[1728409071896,0.082284,62313.0,62312.0,0.013]
[1728409072100,0.082284,62313.0,62311.0,0.04811572]
[1728409072397,0.080286,62311.0,62310.0,0.04810741]
[1728409072602,0.080288,62310.0,62306.0,0.06410598]
[1728409072900,0.080293,62306.0,62305.0,0.06410598]
[1728409073298,0.080293,62306.0,62304.0,0.080294]
[1728409073299,0.080294,62305.0,62304.0,0.080294]
[1728409074202,0.080295,62304.0,62303.0,0.06410598]
[1728409074503,0.001,62305.0,62301.0,0.06410598]
[1728409074802,0.080298,62302.0,62301.0,0.06410598]
[1728409075507,0.080299,62301.0,62300.0,0.0803]
[1728409075694,0.26123695,62301.0,62300.0,0.0803]
[1728409077097,0.26123695,62301.0,62293.0,0.0037]
[1728409077098,0.18093795,62301.0,62293.0,0.0037]
[1728409077303,0.18093795,62301.0,62291.0,0.19]
[1728409077304,0.080303,62299.0,62291.0,0.19]
[1728409077496,0.03101857,62298.0,62296.0,0.080305]
[1728409077696,0.03101857,62297.0,62296.0,0.080305]
[1728409078197,0.11132257,62297.0,62294.0,0.080307]
[1728409078397,0.11132557,62296.0,62294.0,0.080307]
[1728409078598,0.03101857,62295.0,62294.0,0.080307]
[1728409079506,0.03101857,62295.0,62294.0,0.091307]
[1728409080106,0.03201857,62295.0,62294.0,0.091307]
[1728409080318,0.03201857,62295.0,62294.0,0.105307]
[1728409080995,0.03201857,62295.0,62294.0,0.091307]
[1728409081209,0.03301857,62295.0,62294.0,0.466107]
[1728409081393,0.002,62295.0,62294.0,0.466107]
[1728409082305,0.083993,62306.0,62294.0,0.90688763]
[1728409082511,0.080296,62304.0,62303.0,0.28605345]
[1728409082808,0.080296,62304.0,62303.0,0.40841763]
[1728409083506,0.080296,62304.0,62303.0,0.31236418]
[1728409084506,0.081296,62304.0,62303.0,0.32636418]
[1728409084712,0.081296,62304.0,62303.0,0.50271463]
[1728409084901,0.082296,62304.0,62303.0,0.51471463]
[1728409085408,0.082296,62304.0,62303.0,0.41866118]
[1728409085812,0.082296,62304.0,62303.0,0.33836518]
[1728409086597,0.443096,62304.0,62303.0,0.33836518]
[1728409086801,0.443096,62304.0,62303.0,0.24445021]
[1728409087611,0.443096,62304.0,62303.0,0.14836518]
[1728409087812,0.443096,62304.0,62303.0,0.24445142]
[1728409090298,0.56272276,62304.0,62303.0,0.026]
[1728409090809,0.56272278,62304.0,62303.0,0.026]
[1728409093716,0.48242678,62304.0,62303.0,0.026]
[1728409093915,0.43313938,62304.0,62303.0,0.106297]
[1728409094216,0.71532777,62304.0,62303.0,0.106297]
[1728409094408,0.79562277,62304.0,62303.0,0.106297]
[1728409094712,0.62031203,62304.0,62303.0,0.106297]
[1728409095613,0.62031083,62304.0,62303.0,0.106297]
[1728409096611,0.62031083,62304.0,62303.0,0.026]
[1728409097107,0.5627198,62304.0,62303.0,0.026]
[1728409097307,0.49238159,62304.0,62303.0,0.026]
[1728409097515,0.443095,62304.0,62303.0,0.14836532]
[1728409097709,0.563095,62304.0,62303.0,0.14836532]
[1728409097914,0.080312,62291.0,62290.0,0.12567036]
[1728409098113,0.080312,62291.0,62290.0,0.14918474]
[1728409098309,0.080312,62291.0,62290.0,0.14677674]
[1728409098702,0.441112,62291.0,62290.0,0.02898035]
[1728409098906,0.080312,62291.0,62285.0,0.2298]
[1728409099106,0.080312,62291.0,62290.0,0.026]
[1728409099107,0.442112,62291.0,62290.0,0.026]
[1728409099310,0.272312,62291.0,62290.0,0.026]
[1728409099611,0.392312,62291.0,62277.0,0.01360824]
[1728409099913,0.080328,62279.0,62278.0,0.14464197]
[1728409100410,0.080329,62278.0,62277.0,0.03155925]
[1728409100719,0.080329,62278.0,62277.0,0.00240824]
[1728409101517,0.441129,62278.0,62277.0,0.00240824]
[1728409101702,0.441129,62278.0,62273.0,0.02918572]
[1728409101909,0.441129,62278.0,62266.0,0.3608]
[1728409101910,0.080339,62271.0,62268.0,0.080341]
[1728409103009,0.3608,62272.0,62268.0,0.080341]
[1728409103206,0.441137,62272.0,62268.0,0.080341]
[1728409103403,0.441137,62272.0,62271.0,0.06401801]
[1728409104412,0.3618,62272.0,62266.0,0.02894967]
[1728409104614,0.080341,62269.0,62264.0,0.42565801]
[1728409104821,0.080346,62265.0,62264.0,0.02850696]
[1728409105015,0.080341,62269.0,62259.0,0.00808819]
[1728409105016,0.080347,62264.0,62261.0,0.06401801]
[1728409105314,0.080347,62264.0,62259.0,0.00808819]
[1728409105520,0.441143,62267.0,62262.0,0.080349]
[1728409105709,0.080345,62266.0,62262.0,0.080349]
[1728409105909,0.080348,62263.0,62259.0,0.00808819]
[1728409106116,0.080348,62263.0,62259.0,0.08844119]
[1728409106414,0.080348,62263.0,62259.0,0.080353]
[1728409106808,0.080348,62263.0,62259.0,0.08835083]
[1728409107412,0.080348,62263.0,62259.0,0.080353]
[1728409107613,0.081348,62263.0,62259.0,0.080353]
[1728409107815,0.080351,62261.0,62256.0,0.080357]
[1728409108117,0.080355,62259.0,62255.0,0.0292755]
[1728409108419,0.080355,62259.0,62256.0,0.080357]
[1728409109419,0.080355,62259.0,62254.0,0.55172]
[1728409109611,0.080355,62259.0,62254.0,0.441159]
[1728409109612,0.080355,62258.0,62254.0,0.441159]
[1728409110114,0.080355,62258.0,62254.0,0.3608]
[1728409110318,0.001,62259.0,62254.0,0.3608]
[1728409110319,0.001,62259.0,62254.0,0.38991633]
[1728409110615,0.002,62259.0,62256.0,0.080356]
[1728409111015,0.001,62259.0,62256.0,0.080356]
[1728409111311,0.002,62259.0,62253.0,0.19]
[1728409111510,0.002,62259.0,62258.0,0.080355]
[1728409112115,0.002,62259.0,62258.0,0.441155]
[1728409112317,0.001,62259.0,62258.0,0.441155]
[1728409112521,0.080345,62266.0,62261.0,0.08035]
[1728409114623,0.080346,62265.0,62263.0,0.080347]
[1728409115324,0.080348,62263.0,62262.0,0.06375102]
[1728409115524,0.080348,62263.0,62261.0,0.06375102]
[1728409115726,0.080347,62265.0,62262.0,0.06375102]
[1728409117027,0.080347,62265.0,62262.0,0.14410002]
[1728409117236,0.001,62263.0,62262.0,0.14410002]
[1728409118323,0.081347,62265.0,62260.0,0.02953014]
[1728409118324,0.082347,62265.0,62263.0,0.080347]
[1728409118522,0.082347,62265.0,62263.0,0.14410441]
[1728409118918,0.080347,62265.0,62263.0,0.14410441]
[1728409119333,0.080347,62265.0,62264.0,0.06375741]
[1728409119532,0.080347,62265.0,62263.0,0.14410441]
[1728409119835,0.081347,62265.0,62264.0,0.06375741]
[1728409120033,0.081347,62265.0,62263.0,0.14410441]
[1728409120331,0.081347,62265.0,62264.0,0.06375741]
[1728409120630,0.082347,62265.0,62264.0,0.06375741]
[1728409121429,0.082347,62265.0,62263.0,0.080347]
[1728409121630,0.081347,62265.0,62263.0,0.080347]
[1728409121837,0.082347,62265.0,62260.0,0.02953014]
[1728409122028,0.082347,62265.0,62263.0,0.080347]
[1728409122333,0.080347,62264.0,62263.0,0.080347]
[1728409122730,0.002,62265.0,62258.0,0.48604076]
[1728409122925,0.002,62265.0,62250.0,0.13133576]
[1728409122926,0.19,62261.0,62257.0,0.080355]
[1728409123129,0.080353,62259.0,62258.0,0.12081957]
[1728409123329,0.080355,62258.0,62257.0,0.080355]
[1728409123631,0.080355,62258.0,62257.0,0.20127131]
[1728409124436,0.080355,62258.0,62257.0,0.20130773]
[1728409124632,0.081355,62258.0,62257.0,0.20130773]
[1728409125539,0.081355,62258.0,62257.0,0.12095273]
[1728409125834,0.080362,62252.0,62251.0,0.0037]
[1728409126034,0.3608,62253.0,62249.0,0.02878053]
[1728409126332,0.080366,62249.0,62246.0,0.19243236]
[1728409126638,0.3608,62253.0,62247.0,0.02881528]
[1728409126840,0.080366,62250.0,62247.0,0.080368]
[1728409127236,0.080366,62250.0,62248.0,0.080367]
[1728409127438,0.34467157,62253.0,62248.0,0.080367]
[1728409127828,0.080366,62250.0,62248.0,0.080367]
[1728409128635,0.34567157,62253.0,62250.0,0.080364]
[1728409128636,0.080362,62252.0,62250.0,0.080364]
[1728409128835,0.001,62253.0,62252.0,0.270362]
[1728409130243,0.002,62253.0,62252.0,0.270362]
[1728409131137,0.001,62253.0,62252.0,0.080362]
[1728409131347,0.001,62253.0,62252.0,0.08020228]
[1728409131532,0.001,62253.0,62251.0,0.08020275]
[1728409131732,0.082361,62253.0,62251.0,0.08020275]
[1728409132044,0.082361,62253.0,62252.0,0.08020275]
[1728409132246,0.002,62253.0,62252.0,0.08020275]
[1728409132435,0.002,62253.0,62252.0,0.080362]
[1728409132834,0.002,62253.0,62248.0,0.02914998]
[1728409133042,0.002,62253.0,62252.0,0.08021286]
[1728409133043,0.082362,62253.0,62252.0,0.08021286]
[1728409133636,0.082362,62253.0,62251.0,0.08021286]
[1728409133834,0.080362,62252.0,62251.0,0.08021286]
[1728409134034,0.080364,62251.0,62250.0,0.08021286]
[1728409134644,0.080364,62251.0,62249.0,0.080366]
[1728409135543,0.081364,62251.0,62249.0,0.080366]
[1728409136139,0.082364,62251.0,62249.0,0.080366]
[1728409136545,0.082364,62251.0,62250.0,0.14074829]
[1728409139045,0.082364,62251.0,62250.0,0.1407443]
[1728409140142,0.002,62251.0,62250.0,0.2211093]
[1728409140344,0.002,62251.0,62250.0,0.4111093]
[1728409140645,0.080357,62256.0,62254.0,0.080359]
[1728409140842,0.190357,62256.0,62255.0,0.25866]
[1728409141947,0.191357,62256.0,62255.0,0.25866]
[1728409142346,0.191357,62256.0,62255.0,0.1179157]
[1728409142539,0.191358,62256.0,62255.0,0.11794636]
[1728409143050,0.192358,62256.0,62255.0,0.11794636]
[1728409145843,0.192358,62256.0,62255.0,0.21421884]
[1728409147451,0.192358,62256.0,62255.0,0.21398212]
[1728409149649,0.08036,62254.0,62253.0,0.08025297]
[1728409149849,0.38036,62254.0,62253.0,0.19798438]
[1728409150356,0.6608,62254.0,62252.0,0.08025297]
[1728409150560,0.385761,62253.0,62252.0,0.08025297]
[1728409150860,0.385761,62253.0,62251.0,0.08025297]
[1728409150861,0.080362,62252.0,62251.0,0.08025297]
[1728409151047,0.380362,62252.0,62251.0,0.19812242]
[1728409152248,0.380362,62252.0,62251.0,0.19813843]
[1728409152445,0.380362,62252.0,62251.0,0.19816427]
[1728409152651,0.381362,62252.0,62251.0,0.19816427]
[1728409152853,0.381362,62252.0,62251.0,0.08030088]
[1728409153260,0.080364,62251.0,62250.0,0.08030088]
[1728409153461,0.080364,62251.0,62250.0,0.19821858]
[1728409153462,0.500464,62251.0,62250.0,0.19821858]
[1728409154157,0.500464,62251.0,62250.0,0.08030088]
[1728409154365,0.080365,62250.0,62249.0,0.08030088]
[1728409154553,0.190365,62250.0,62249.0,0.198223]
[1728409154952,0.190365,62250.0,62249.0,0.278589]
[1728409155763,0.190365,62250.0,62249.0,0.198223]
[1728409156070,0.191365,62250.0,62249.0,0.198223]
[1728409156358,0.192365,62250.0,62249.0,0.198223]
[1728409157548,0.192365,62250.0,62249.0,0.11792212]
[1728409157754,0.192365,62250.0,62249.0,0.19828812]
[1728409157955,0.192365,62250.0,62249.0,0.25845983]
[1728409162165,0.192365,62250.0,62249.0,0.25854293]
[1728409162360,0.312365,62250.0,62249.0,0.25854293]
[1728409172376,0.2721573,62250.0,62249.0,0.25854293]
[1728409173082,0.2158665,62250.0,62249.0,0.25854293]
[1728409174086,0.2158665,62250.0,62249.0,0.33890893]
[1728409174291,0.002,62250.0,62249.0,0.33890893]
[1728409174482,0.002,62250.0,62249.0,0.33752261]
[1728409174989,0.122,62250.0,62249.0,0.33752261]
[1728409175195,0.312365,62250.0,62249.0,0.33752261]
[1728409176987,0.312365,62250.0,62249.0,0.33768306]
[1728409178891,0.312365,62250.0,62249.0,0.19775722]
[1728409179296,0.312365,62250.0,62249.0,0.33773228]
[1728409179492,0.312365,62250.0,62249.0,0.25736628]
[1728409179687,0.312365,62250.0,62249.0,0.25736264]
[1728409179882,0.312365,62250.0,62249.0,0.11739122]
[1728409181894,0.312365,62250.0,62249.0,0.11764271]
[1728409182987,0.34171161,62250.0,62249.0,0.11764271]
[1728409183498,0.34171161,62250.0,62249.0,0.19798777]
[1728409183896,0.34171161,62250.0,62249.0,0.08034506]
[1728409184292,0.080366,62249.0,62248.0,0.08034506]
[1728409184493,0.424766,62249.0,62248.0,0.19793631]
[1728409184892,0.424766,62249.0,62248.0,0.11759125]
[1728409185396,0.424766,62249.0,62248.0,0.19791391]
[1728409185397,0.425766,62249.0,62248.0,0.19791391]
[1728409185986,0.426766,62249.0,62248.0,0.19791391]
[1728409186185,0.426766,62249.0,62248.0,0.19791206]
[1728409186589,0.426766,62249.0,62248.0,0.19788622]
[1728409186990,0.426766,62249.0,62248.0,0.08032081]
[1728409187191,0.426766,62249.0,62248.0,0.19785999]
[1728409187788,0.426766,62249.0,62248.0,0.11753918]
[1728409188187,0.426766,62249.0,62248.0,0.19784321]
[1728409189392,0.426766,62249.0,62248.0,0.11753918]
[1728409189600,0.426766,62249.0,62248.0,0.19783976]
[1728409191590,0.426766,62249.0,62248.0,0.19778535]
[1728409191996,0.202366,62249.0,62248.0,0.27815335]
[1728409192301,0.202366,62249.0,62248.0,0.19785277]
[1728409192302,0.322366,62249.0,62248.0,0.19785277]
[1728409193092,0.002,62249.0,62248.0,0.19785277]